bitfinex/quotes_ETHUSD_20250110
["timestamp","ask_amount","ask_price","bid_price","bid_amount"]
[1736468276359,0.55,3236.6,3235.6,0.7887]
[1736468276574,0.55,3236.6,3236.0,3.0902]
[1736468276785,0.773,3236.7,3236.2,3.08994]
[1736468277292,0.55,3236.6,3235.9,3.09024]
[1736468277501,0.55,3236.6,3235.7,3.0905]
[1736468278559,0.55,3236.6,3235.8,0.03090068]
[1736468278759,0.55,3236.6,3235.7,3.0905]
[1736468279084,0.03156457,3236.5,3235.9,3.09031]
[1736468279285,0.03156457,3236.5,3235.6,0.7887]
[1736468279487,0.03156457,3236.5,3235.8,3.09042]
[1736468279660,0.03156457,3236.5,3235.9,3.09032]
[1736468280498,0.03156457,3236.5,3235.8,3.09042]
[1736468280796,0.03156457,3236.5,3236.4,3.08985]
[1736468280996,0.03156457,3236.5,3235.9,0.252]
[1736468281159,0.773,3236.7,3236.2,3.08996]
[1736468281361,0.03156457,3236.4,3236.2,3.08996]
[1736468281588,0.55,3236.6,3236.2,3.08996]
[1736468281896,0.55,3236.6,3236.0,3.0902]
[1736468282101,0.0313961,3236.5,3236.1,3.09011]
[1736468283002,0.55,3236.3,3235.7,3.3425]
[1736468283504,0.03147386,3236.2,3235.7,3.3425]
[1736468283801,0.03147386,3236.2,3236.1,3.09013]
[1736468284190,0.55,3236.7,3236.1,3.09013]
[1736468284372,0.55,3236.5,3235.3,0.7784]
[1736468284567,0.55,3236.5,3235.7,3.09049]
[1736468284765,0.03129241,3236.4,3235.7,3.09049]
[1736468284969,0.03129241,3236.4,3235.5,3.09067]
[1736468285162,0.55,3236.2,3235.6,3.0906]
[1736468285366,0.55,3236.2,3235.7,3.09048]
[1736468285578,0.03131834,3236.1,3235.7,3.09048]
[1736468285773,0.03131834,3236.1,3235.4,0.28290398]
[1736468285997,0.03131834,3236.1,3235.6,3.09059]
[1736468286198,0.55,3236.2,3235.6,3.09059]
[1736468286401,0.03131834,3236.0,3235.6,3.09059]
[1736468286603,0.55,3236.2,3235.6,3.09059]
[1736468286765,0.03124057,3235.9,3235.6,3.09059]
[1736468287102,0.03124057,3235.8,3235.4,0.28290397]
[1736468287480,0.55,3236.2,3235.7,3.09052]
[1736468287883,0.03123409,3236.1,3235.7,3.09052]
[1736468288668,0.03123409,3236.1,3235.8,3.09037]
[1736468289110,0.7976,3236.7,3235.5,0.03090396]
[1736468289500,0.55,3236.6,3236.0,3.09019]
[1736468289703,0.58123409,3236.6,3236.0,3.09019]
[1736468292441,0.58123409,3236.6,3236.2,3.09001]
[1736468292772,0.58123409,3236.6,3235.6,3.09061]
[1736468292773,0.58123409,3236.6,3236.0,3.09016]
[1736468293106,0.58123409,3236.6,3236.0,3.09017]
[1736468293306,0.58123409,3236.6,3235.6,3.09059]
[1736468293507,0.55,3236.2,3235.7,0.252]
[1736468293908,0.03130537,3236.1,3235.7,0.252]
[1736468294704,0.03130537,3236.1,3235.9,3.09029]
[1736468295091,0.03130537,3236.1,3236.0,3.09023]
[1736468295413,0.55,3236.2,3236.0,3.09023]
[1736468295573,0.7604,3237.0,3236.3,3.08993]
[1736468295772,0.55,3236.9,3236.3,3.08993]
[1736468295972,0.58117576,3236.9,3236.1,3.09011]
[1736468296188,0.58117576,3236.9,3236.3,3.08994]
[1736468296594,0.58117576,3236.9,3236.1,3.09009]
[1736468296804,0.58117576,3236.9,3236.2,3.09001]
[1736468296994,1.01533334,3236.9,3236.2,3.09001]
[1736468297396,1.01533334,3236.9,3235.9,0.03089932]
[1736468297584,1.01533334,3236.9,3236.4,3.08984]
[1736468298006,0.03117576,3236.9,3236.1,0.03089779]
[1736468298187,0.03117576,3236.9,3236.8,3.08947]
[1736468298383,0.8286,3237.6,3237.2,3.08908]
[1736468298591,0.8286,3237.6,3237.3,3.08897]
[1736468298791,0.03026078,3237.5,3237.3,3.08897]
[1736468299002,0.03026078,3237.5,3237.4,3.08889]
[1736468299186,0.8286,3237.9,3237.4,3.11977831]
[1736468299385,0.8286,3237.9,3237.6,3.08865]
[1736468299610,0.03072749,3237.8,3237.6,3.08865]
[1736468299810,0.8286,3237.9,3237.6,3.08865]
[1736468300017,0.8286,3237.9,3237.3,3.0889]
[1736468300201,0.58072749,3237.8,3237.1,3.08916]
[1736468300415,0.58072749,3237.8,3237.2,0.252]
[1736468300617,0.58072749,3237.8,3237.2,3.34105]
[1736468301750,0.58072749,3237.8,3237.3,0.03088818]
[1736468301911,0.03072749,3237.8,3237.7,3.08861]
[1736468302294,0.8286,3237.9,3237.7,3.08861]
[1736468302499,0.03083117,3237.8,3237.5,3.08877]
[1736468302812,0.8286,3237.9,3237.5,3.08877]
[1736468303391,0.03083117,3237.8,3237.5,3.08877]
[1736468303784,0.8286,3237.9,3237.5,3.08877]
[1736468303902,0.55,3237.8,3237.2,3.089]
[1736468304092,0.55,3237.8,3237.3,0.252]
[1736468304093,0.58091541,3237.8,3237.3,0.252]
[1736468304448,0.58091541,3237.8,3236.9,0.03088813]
[1736468304628,0.58091541,3237.8,3237.0,0.252]
[1736468304806,0.55,3237.6,3236.5,0.7672]
[1736468305006,0.55,3237.4,3236.7,3.08955]
[1736468305198,0.98644,3237.4,3236.8,3.08946]
[1736468305393,0.03078581,3237.3,3236.8,3.08946]
[1736468305902,0.03078581,3237.3,3236.9,3.08937]
[1736468306507,0.03078581,3237.3,3236.9,0.79389337]
[1736468306696,0.825,3237.9,3237.3,3.08891]
[1736468306896,0.03077933,3237.2,3236.9,3.8523]
[1736468307151,0.55,3237.8,3237.4,3.08889]
[1736468307637,0.03077933,3237.7,3237.4,3.08889]
[1736468307810,0.03077933,3237.7,3237.1,3.08909]
[1736468308005,0.55,3237.8,3237.1,3.08909]
[1736468308231,0.03077933,3237.6,3237.1,3.34109]
[1736468308533,0.03077933,3237.5,3237.1,3.34109]
[1736468308897,0.55,3237.8,3237.1,3.34109]
[1736468309093,0.03077933,3237.4,3237.1,3.34109]
[1736468309299,0.825,3237.9,3237.4,3.08885]
[1736468309562,0.03077933,3237.3,3237.2,3.08907]
[1736468309760,0.825,3237.9,3237.1,0.252]
[1736468309761,0.55,3237.8,3237.1,0.252]
[1736468310093,0.55,3237.1,3236.8,3.08945]
[1736468310266,0.55,3237.1,3236.6,3.08963]
[1736468310402,0.55,3237.1,3236.6,0.252]
[1736468310603,0.0312914,3237.0,3236.6,0.252]
[1736468311215,0.55,3236.8,3236.4,0.252]
[1736468311545,0.55,3236.8,3236.4,3.34177]
[1736468311839,0.0312914,3236.7,3236.4,3.34177]
[1736468312337,0.55,3236.8,3236.4,3.34177]
[1736468312639,1.3688914,3236.6,3235.7,3.09051]
[1736468312859,0.55,3236.4,3235.8,3.09042]
[1736468313465,0.0312914,3236.3,3235.8,3.09042]
[1736468313672,0.0312914,3236.3,3235.9,3.09032]
[1736468313959,0.0312914,3236.3,3235.7,0.28290125]
[1736468314162,0.55,3236.1,3235.7,0.252]
[1736468314463,0.03060426,3236.2,3235.8,0.7935046]
[1736468314763,0.55,3236.4,3236.1,3.09005]
[1736468315168,0.02886872,3236.3,3236.1,3.09005]
[1736468315365,0.55,3236.4,3236.1,3.09005]
[1736468316055,0.02886872,3236.3,3236.1,3.09005]
[1736468316461,0.55,3236.4,3236.1,3.34205]
[1736468316862,0.02886872,3236.3,3236.1,3.34205]
[1736468317117,0.55,3236.4,3236.1,3.34205]
[1736468317420,0.02886872,3236.2,3236.1,3.34205]
[1736468317699,0.55,3236.4,3236.1,3.34205]
[1736468318017,0.02886872,3236.2,3236.1,0.252]
[1736468318377,0.55,3236.4,3236.1,0.252]
[1736468318573,0.02886872,3236.2,3236.1,0.252]
[1736468318779,0.55,3236.4,3236.1,0.252]
[1736468318975,0.02886872,3236.2,3236.1,0.252]
[1736468319194,0.55,3236.4,3236.1,0.252]
[1736468319701,0.02886872,3236.3,3236.1,0.252]
[1736468320474,0.55,3236.4,3236.1,0.252]
[1736468320690,0.02886872,3236.2,3236.1,0.252]
[1736468321005,0.55,3236.4,3236.1,0.252]
[1736468321504,0.02886872,3236.3,3236.1,0.252]
[1736468322788,0.02886872,3236.3,3236.2,3.09004]
[1736468323006,0.7556,3237.3,3236.9,3.0893]
[1736468323408,0.02886872,3237.2,3236.9,3.0893]
[1736468323702,0.57886872,3237.2,3236.9,3.0893]
[1736468323863,0.55,3237.2,3236.9,3.0893]
[1736468324064,0.02886872,3237.1,3236.9,3.0893]
[1736468328688,0.02886872,3237.1,3236.7,3.08952]
[1736468328895,0.02886872,3237.1,3236.3,3.08994]
[1736468328896,0.55,3237.1,3236.3,3.08994]
[1736468329109,0.55,3237.1,3236.6,0.255]
[1736468329301,0.02886872,3237.0,3236.6,0.255]
[1736468329599,0.55,3237.2,3236.6,0.255]
[1736468329797,0.03001675,3236.9,3236.6,0.255]
[1736468330001,0.55,3237.2,3236.6,0.255]
[1736468330202,0.03001675,3236.8,3236.6,0.255]
[1736468330427,0.55,3237.2,3236.6,0.255]
[1736468330608,0.0298676,3236.7,3236.3,3.08991]
[1736468330813,0.55,3236.5,3236.0,0.255]
[1736468331198,0.0298676,3236.4,3236.0,0.255]
[1736468331525,0.55,3236.5,3236.0,0.255]
[1736468331908,0.02969249,3236.3,3236.0,0.255]
[1736468332083,0.55,3236.5,3236.2,3.09002]
[1736468332293,0.7922,3236.9,3236.5,3.08973]
[1736468333214,0.55,3236.8,3236.3,3.08993]
[1736468333915,0.55,3236.8,3236.2,0.03089709]
[1736468334492,0.55,3236.8,3236.1,0.828]
[1736468334730,0.55,3236.8,3236.4,3.08985]
[1736468335404,0.55,3236.8,3236.2,3.08996]
[1736468335599,0.55,3236.8,3236.3,3.08994]
[1736468335934,0.55,3236.8,3236.2,3.09003]
[1736468336289,0.55,3236.8,3236.0,3.34521]
[1736468336525,0.55,3236.8,3236.0,0.255]
[1736468336729,0.55,3236.6,3236.0,0.255]
[1736468339036,0.55,3236.3,3236.0,0.255]
[1736468339541,0.02969249,3236.2,3235.8,3.09041]
[1736468339829,0.55,3236.3,3235.8,0.255]
[1736468340138,0.02969249,3236.1,3235.8,3.34541]
[1736468340357,0.55,3236.3,3235.8,3.34541]
[1736468340654,0.769,3236.4,3235.3,3.51523975]
[1736468340655,3.55,3235.9,3235.3,3.51523975]
[1736468340965,3.55,3235.9,3235.0,3.09118]
[1736468340966,0.769,3236.0,3235.4,0.85250948]
[1736468341239,0.02920606,3235.8,3235.4,0.85250948]
[1736468341452,0.55,3236.3,3235.4,0.85250948]
[1736468341658,0.02920606,3235.7,3235.6,3.09057]
[1736468341948,0.55,3236.3,3235.6,3.09057]
[1736468342152,0.02920606,3235.7,3235.6,3.09057]
[1736468342348,1.27293773,3236.3,3235.6,3.09057]
[1736468342552,0.02920606,3235.7,3235.6,3.09057]
[1736468342753,0.55,3236.3,3235.6,3.09057]
[1736468343451,0.02920606,3236.2,3235.4,3.91237]
[1736468343613,0.02920606,3236.2,3235.5,3.0907]
[1736468345122,0.02920606,3236.2,3235.6,3.09061]
[1736468345857,0.02920606,3236.2,3235.4,3.91238]
[1736468346061,0.02920606,3236.2,3235.4,3.09078]
[1736468346816,0.02920606,3236.2,3234.1,8.74]
[1736468346817,0.55,3235.7,3234.9,3.09128]
[1736468347057,0.55,3235.7,3235.0,0.255]
[1736468347058,3.64053,3235.7,3235.0,0.255]
[1736468347240,0.55,3235.5,3235.0,0.255]
[1736468347555,0.55,3235.1,3234.5,0.255]
[1736468348063,0.7743,3234.4,3233.5,3.84574]
[1736468348216,0.7743,3234.4,3233.6,0.255]
[1736468348422,0.55,3234.3,3233.6,0.255]
[1736468348732,0.57920606,3234.3,3233.6,0.255]
[1736468349657,0.57920606,3234.3,3233.4,3.12359386]
[1736468349869,0.02920606,3234.3,3233.6,3.09252]
[1736468350047,0.7743,3234.4,3233.4,3.34669]
[1736468350048,3.7743,3234.4,3233.4,3.34669]
[1736468350358,0.55,3234.3,3233.4,3.34669]
[1736468350655,0.7743,3234.4,3233.4,0.254]
[1736468350833,0.55,3234.3,3233.5,3.09254]
[1736468351032,0.55,3234.3,3233.4,0.254]
[1736468351238,0.55,3234.3,3233.5,3.09261]
[1736468351439,0.55,3234.3,3233.5,3.12353309]
[1736468351759,1.291601,3234.3,3233.5,3.09261]
[1736468352927,1.291601,3234.3,3233.4,0.254]
[1736468353126,3.64188,3234.3,3233.4,0.254]
[1736468353327,0.55,3234.3,3233.4,0.254]
[1736468354360,0.55,3233.9,3233.0,0.254]
[1736468354657,0.55,3233.7,3233.0,0.254]
[1736468355846,0.55,3233.7,3232.7,3.09337]
[1736468356050,0.55,3233.7,3232.8,3.09329]
[1736468357670,0.55,3233.7,3232.9,3.09319]
[1736468358169,0.8212,3233.8,3233.4,3.09268]
[1736468358326,0.8212,3234.2,3233.9,3.09222]
[1736468358532,5.43225388,3235.1,3233.8,0.254]
[1736468358533,0.768,3234.9,3233.8,0.254]
[1736468358753,3.85938,3234.8,3233.8,0.254]
[1736468359064,0.768,3234.8,3233.8,0.28491973]
[1736468359242,0.768,3234.8,3233.9,3.09215]
[1736468359451,0.55,3234.7,3233.9,3.09215]
[1736468359670,0.768,3234.8,3233.9,3.09215]
[1736468359875,0.768,3234.2,3233.2,3.91512]
[1736468360249,0.55,3233.7,3233.2,0.254]
[1736468360391,0.55,3233.7,3232.8,0.254]
[1736468360609,0.55,3233.5,3232.8,0.254]
[1736468361758,0.55,3233.5,3232.9,3.09319]
[1736468362398,0.768,3233.6,3232.9,3.09319]
[1736468363202,0.768,3233.6,3232.8,0.254]
[1736468363401,0.768,3233.6,3232.8,3.34729]
[1736468364401,0.768,3233.6,3232.9,0.03093016]
[1736468364604,0.768,3233.6,3232.8,0.254]
[1736468364766,0.768,3233.6,3233.1,3.093]
[1736468365394,6.0653,3233.9,3233.4,3.0927]
[1736468365867,0.7853,3233.9,3233.4,3.0927]
[1736468366381,0.7853,3233.9,3232.8,0.254]
[1736468366578,0.55,3233.8,3232.9,3.34718]
[1736468367107,0.7853,3233.9,3232.9,0.254]
[1736468367303,0.7954,3233.6,3232.9,0.254]
[1736468367678,1.184179,3233.6,3232.7,3.09338]
[1736468367881,0.55,3233.5,3232.7,0.254]
[1736468368099,3.64264,3233.5,3232.7,0.254]
[1736468369007,0.7954,3233.4,3232.7,0.254]
[1736468369208,0.7954,3233.1,3232.1,3.09393]
[1736468369428,0.8167,3232.9,3231.7,0.8305]
[1736468369577,0.8167,3232.9,3232.0,3.34805]
[1736468370013,0.8167,3232.9,3232.0,0.254]
[1736468371324,0.8167,3232.9,3232.3,3.09373]
[1736468371469,0.8167,3232.9,3232.8,3.09329]
[1736468371677,0.7954,3233.5,3232.5,3.09358]
[1736468371902,0.7954,3233.5,3232.6,3.09348]
[1736468372107,0.7954,3233.5,3232.8,3.09321]
[1736468372471,0.55,3233.4,3232.5,3.09353]
[1736468372734,0.55,3233.2,3232.5,0.254]
[1736468372978,0.829,3233.0,3232.5,0.254]
[1736468375813,0.8134,3233.3,3232.5,0.254]
[1736468376108,0.8134,3233.3,3232.7,3.09338]
[1736468376308,0.8134,3233.3,3232.9,3.09312]
[1736468377672,0.8277,3233.7,3232.8,0.03092975]
[1736468377885,0.8007,3234.0,3233.4,3.09268]
[1736468378784,0.8007,3234.0,3233.2,0.80942506]
[1736468379019,0.8007,3234.0,3233.7,3.09234]
[1736468379202,3.0,3234.7,3233.3,3.09281]
[1736468379203,0.8007,3234.7,3233.5,0.254]
[1736468379398,0.8007,3234.7,3233.6,0.03092042]
[1736468379606,0.8007,3234.7,3233.8,3.09225]
[1736468379799,0.8007,3234.7,3233.6,0.03092042]
[1736468380043,0.8007,3234.7,3234.0,3.09214]
[1736468380938,0.8007,3234.7,3233.8,3.0923]
[1736468381250,1.550378,3234.7,3233.8,3.0923]
[1736468382139,1.550378,3234.7,3233.9,3.09224]
[1736468384243,0.55,3234.4,3233.7,0.252]
[1736468384543,0.55,3234.2,3233.2,0.7785]
[1736468384704,1.3487,3234.0,3233.2,0.252]
[1736468384910,1.23357,3233.9,3233.2,0.252]
[1736468385747,0.7987,3233.9,3233.2,0.252]
[1736468385906,0.7987,3233.9,3233.4,3.09263]
[1736468386104,0.7987,3233.9,3233.2,0.252]
[1736468386302,0.7987,3233.9,3232.6,3.09348]
[1736468386303,0.55,3233.8,3232.6,3.09348]
[1736468386535,0.7606,3233.7,3232.7,3.34536]
[1736468386740,0.7606,3233.6,3232.5,3.09354]
[1736468386946,0.7606,3233.6,3232.3,3.09369]
[1736468386947,0.7606,3233.1,3232.3,3.09373]
[1736468387148,3.85361,3233.1,3232.5,0.252]
[1736468387305,3.09301,3233.1,3232.1,3.34593]
[1736468387512,0.8268,3233.0,3232.1,3.34593]
[1736468387817,0.8268,3233.0,3232.1,0.252]
[1736468387818,0.55,3232.9,3232.1,0.252]
[1736468388235,0.55,3232.7,3231.9,0.252]
[1736468389134,0.55,3232.7,3231.9,3.34614]
[1736468390132,0.55,3232.7,3231.6,0.8048]
[1736468390464,0.7519,3232.3,3231.4,0.252]
[1736468390767,0.384559,3232.2,3231.3,3.09471]
[1736468390974,0.384559,3232.2,3231.3,3.34671]
[1736468391112,0.384559,3232.2,3231.3,0.252]
[1736468391113,0.55,3232.1,3231.3,0.252]
[1736468391313,0.55,3232.2,3231.3,0.252]
[1736468391523,0.55,3232.0,3231.3,0.252]
[1736468393176,0.8144,3231.9,3231.3,0.252]
[1736468394859,0.8144,3231.9,3231.0,3.347]
[1736468395161,0.445847,3231.8,3231.0,3.347]
[1736468395530,0.8144,3231.9,3231.0,3.347]
[1736468395734,0.55,3231.8,3231.0,0.252]
[1736468396561,0.771,3231.8,3231.0,0.252]
[1736468396865,0.55,3231.7,3231.0,0.252]
[1736468397169,0.991517,3231.7,3231.0,0.252]
[1736468397348,0.991517,3231.7,3230.8,0.252]
[1736468397929,0.991517,3231.7,3230.8,3.34712]
[1736468398149,0.55,3231.7,3230.8,3.34712]
[1736468398557,0.55,3231.7,3230.8,3.09512]
[1736468398730,0.55,3231.5,3230.6,3.09538]
[1736468398929,0.781,3231.3,3230.7,0.252]
[1736468399182,0.781,3231.3,3230.7,3.34722]
[1736468399483,0.781,3231.3,3230.8,3.09516]
[1736468400066,0.781,3231.3,3230.6,3.34736]
[1736468400387,0.781,3231.3,3230.6,3.09536]
[1736468400546,0.781,3231.3,3230.5,0.252]
[1736468400748,0.3781,3231.2,3230.4,0.252]
[1736468401087,0.3781,3231.2,3230.4,3.34758]
[1736468401088,0.781,3231.1,3230.4,3.34758]
[1736468402026,0.781,3231.1,3230.6,3.09539]
[1736468402252,0.781,3231.1,3230.5,3.09549]
[1736468402438,0.781,3231.1,3230.4,0.252]
[1736468402889,1.3411,3230.9,3230.1,3.09579]
[1736468403167,1.3411,3230.9,3229.6,0.7972]
[1736468403168,1.3411,3230.9,3230.0,0.252]
[1736468403329,1.3411,3230.9,3230.0,3.34795]
[1736468403665,1.3411,3230.9,3230.0,0.252]
[1736468403838,1.3411,3230.9,3230.1,3.09585]
[1736468404167,1.7919682,3230.9,3230.3,3.09568]
[1736468405303,0.7881,3231.6,3230.8,3.0952]
[1736468405929,0.7881,3231.6,3230.5,0.03094997]
[1736468406133,0.7881,3231.6,3231.1,3.0949]
[1736468408073,0.7881,3231.6,3230.8,0.81734805]
[1736468408278,0.7957,3232.1,3231.0,3.09501]
[1736468408480,0.7957,3232.1,3231.3,3.09466]
[1736468408762,0.55,3232.0,3231.1,0.252]
[1736468408925,0.7896,3231.7,3231.1,0.252]
[1736468409131,0.7896,3231.5,3231.1,0.252]
[1736468411256,5.28,3232.3,3231.1,0.252]
[1736468411464,0.7791,3232.2,3231.5,3.09451]
[1736468411772,4.38501,3232.2,3231.3,3.0947]
[1736468412094,4.38501,3232.2,3231.4,3.09459]
[1736468413973,0.8031,3232.1,3231.4,3.09459]
[1736468415191,0.8031,3232.1,3231.2,0.03094407]
[1736468415422,0.8031,3232.1,3231.4,0.7908]
[1736468415763,0.8031,3232.1,3231.1,1.0428]
[1736468415965,0.8031,3232.1,3231.3,3.09465]
[1736468416300,0.8031,3232.1,3231.2,0.03094442]
[1736468416465,0.8031,3232.1,3231.4,3.0946]
[1736468417203,3.89707,3232.1,3231.1,0.252]
[1736468417372,3.0,3232.2,3221.6,9.79774613]
[1736468417373,0.8163,3231.8,3230.8,0.8263]
[1736468417695,0.8163,3231.8,3230.9,3.09509]
[1736468418600,0.8163,3231.8,3231.1,3.09491]
[1736468418771,0.8163,3231.8,3230.9,3.12601788]
[1736468418965,0.8163,3231.7,3230.8,0.254]
[1736468419478,5.28,3232.3,3231.3,3.09471]
[1736468419665,3.8163,3232.2,3231.4,3.09462]
[1736468419866,0.8163,3232.2,3231.3,2.91908989]
[1736468420095,0.8163,3232.2,3231.9,3.09415]
[1736468420477,0.8163,3232.2,3231.8,0.254]
[1736468420675,0.8163,3232.2,3231.8,3.34822]
[1736468420991,0.8163,3232.9,3232.0,0.8263]
[1736468421179,0.8163,3232.9,3232.3,3.09376]
[1736468421780,0.8163,3232.9,3232.1,3.09394]
[1736468422089,0.8163,3232.9,3232.2,0.03093656]
[1736468422276,0.8163,3232.9,3232.5,3.0935]
[1736468422481,0.8163,3232.9,3232.2,3.0938]
[1736468422667,5.28,3233.3,3232.6,3.09348]
[1736468423205,5.28,3233.3,3232.3,0.80233367]
[1736468423409,0.7561,3233.2,3232.4,3.09365]
[1736468425102,0.7561,3233.2,3231.9,6.01316989]
[1736468425103,0.8004,3233.0,3232.1,0.254]
[1736468425311,0.8004,3233.0,3232.0,3.348]
[1736468425312,3.8004,3233.0,3232.0,3.348]
[1736468425466,0.744349,3232.9,3232.0,3.348]
[1736468426182,0.7993,3232.8,3232.0,3.348]
[1736468427107,0.7993,3232.8,3232.0,0.254]
[1736468427306,3.7666,3232.6,3232.0,0.254]
[1736468427612,0.7666,3232.5,3231.7,0.254]
[1736468427905,0.7666,3232.3,3231.6,0.254]
[1736468428113,3.86037,3232.3,3231.4,0.03094299]
[1736468428315,3.86037,3232.3,3231.5,0.254]
[1736468428782,0.7666,3232.3,3231.5,0.254]
[1736468428989,1.1912222,3232.3,3231.5,3.34853]
[1736468429202,1.1912222,3232.3,3231.5,3.09453]
[1736468429516,0.7666,3232.6,3231.7,0.7918]
[1736468429834,0.7666,3232.6,3231.8,0.03093552]
[1736468430119,0.7666,3232.6,3232.0,3.09405]
[1736468430321,0.7666,3233.1,3232.1,0.03093464]
[1736468430471,0.7666,3233.1,3232.4,3.09365]
[1736468430808,0.7666,3233.1,3232.3,0.254]
[1736468431011,3.09321,3232.9,3232.3,0.254]
[1736468431316,0.7714,3232.8,3232.3,0.254]
[1736468432512,11.81549353,3233.3,3231.8,0.254]
[1736468432513,0.7714,3232.5,3231.8,0.254]
[1736468432875,0.05009171,3232.4,3231.7,0.254]
[1736468433273,0.7714,3232.5,3231.7,0.254]
[1736468433470,0.7714,3232.5,3231.8,0.03094116]
[1736468433706,0.05009171,3232.4,3231.9,0.7771]
[1736468433922,0.05009171,3232.4,3232.0,0.03093712]
[1736468434077,5.28,3232.6,3232.0,3.12497712]
[1736468434804,0.05009171,3232.5,3232.0,3.12497712]
[1736468435385,0.05009171,3232.5,3232.0,0.254]
[1736468435619,0.7781,3232.4,3232.0,0.254]
[1736468435850,0.7781,3232.4,3231.7,0.254]
[1736468436046,0.7781,3232.4,3231.9,3.09414]
[1736468436247,0.05009171,3232.3,3231.9,3.09414]
[1736468436412,0.05009171,3232.3,3231.7,0.254]
[1736468436747,0.05009171,3232.3,3231.8,3.09424]
[1736468437848,0.05009171,3232.3,3231.7,0.254]
[1736468438225,0.7781,3232.4,3231.7,0.254]
[1736468438425,0.05009171,3232.2,3231.7,0.254]
[1736468438613,1.38391,3232.4,3231.7,0.254]
[1736468438813,0.05009171,3232.1,3231.7,0.254]
[1736468439039,0.7781,3232.4,3231.7,0.254]
[1736468439240,0.05009171,3232.0,3231.9,3.09415]
[1736468439549,0.7531,3233.1,3232.3,3.09371]
[1736468440051,0.05009171,3233.0,3232.3,3.09371]
[1736468440750,0.05009171,3233.0,3231.9,0.7981]
[1736468440956,0.05009171,3233.0,3232.1,3.09393]
[1736468440957,0.8206,3232.9,3232.1,3.09393]
[1736468441448,0.8206,3232.9,3232.2,3.09383]
[1736468441449,0.05009171,3232.8,3232.2,3.09383]
[1736468442631,0.05009171,3232.8,3232.3,0.03093455]
[1736468442834,0.05009171,3232.8,3232.3,3.09376]
[1736468446980,0.05009171,3232.8,3232.0,0.03093453]
[1736468446981,0.05009171,3232.8,3232.0,3.03093453]
[1736468447188,0.05009171,3232.8,3232.7,6.86818]
[1736468447361,5.28,3233.8,3232.7,6.86818]
[1736468447362,0.8159,3233.8,3233.6,3.09252]
[1736468447680,0.8159,3234.1,3233.7,0.03092286]
[1736468447983,0.8159,3234.7,3234.0,3.09211]
[1736468448382,0.8159,3234.7,3233.6,0.255]
[1736468448383,0.38159,3234.6,3234.1,3.09202]
[1736468448693,0.8159,3234.7,3234.2,3.12277896]
[1736468448981,0.7514,3235.4,3234.2,0.03091896]
[1736468449180,0.7514,3235.4,3235.1,3.09109]
[1736468449488,0.7514,3235.4,3234.8,0.255]
[1736468449784,0.7514,3235.4,3235.0,3.09117]
[1736468449989,0.7514,3235.4,3234.8,0.255]
[1736468450191,0.7514,3235.4,3235.1,3.09108]
[1736468451781,0.7514,3236.1,3235.2,0.03090867]
[1736468451986,0.7514,3236.1,3235.4,3.09073]
[1736468452970,0.7514,3236.1,3235.2,3.09099]
[1736468453171,0.7514,3236.1,3235.3,3.12178541]
[1736468453377,0.7514,3236.1,3235.4,3.09077]
[1736468453705,0.60314,3236.0,3235.4,3.09077]
[1736468454569,0.60314,3236.0,3235.2,3.09099]
[1736468455088,0.60314,3236.0,3235.3,0.03090542]
[1736468455277,0.60314,3236.0,3235.2,3.09099]
[1736468455477,0.7514,3236.1,3235.3,0.03090542]
[1736468455701,0.7514,3236.1,3235.5,3.0907]
[1736468456909,0.7514,3236.1,3234.9,0.8219]
[1736468457083,0.7514,3236.1,3235.4,3.09078]
[1736468457288,0.7514,3236.1,3235.6,3.09061]
[1736468458375,0.7514,3236.1,3235.3,3.09084]
[1736468458802,0.7514,3236.1,3235.4,3.12165503]
[1736468459002,0.7514,3236.1,3235.5,3.09068]
[1736468459003,0.05106181,3236.0,3235.5,3.09068]
[1736468459885,0.05106181,3236.0,3235.1,0.03090456]
[1736468460120,0.05106181,3236.0,3235.2,3.0225]
[1736468460345,0.05106181,3236.0,3235.9,3.09033]
[1736468460487,0.7597,3236.6,3235.7,0.254]
[1736468460695,0.05115274,3236.0,3235.7,3.37538076]
[1736468460904,0.7597,3236.6,3235.9,0.7586]
[1736468461118,0.7597,3237.5,3236.0,0.03090131]
[1736468461399,0.7597,3237.5,3236.4,0.8222]
[1736468461600,0.05115274,3237.4,3237.0,3.08922]
[1736468461800,0.05115274,3237.4,3236.6,3.08966]
[1736468461801,0.05115274,3237.4,3237.1,3.12001841]
[1736468462002,0.763,3237.8,3237.1,0.03088841]
[1736468462240,0.763,3237.8,3237.3,3.08898]
[1736468462241,0.0520685,3237.7,3237.3,3.08898]
[1736468462713,0.763,3237.8,3237.3,3.08898]
[1736468462910,0.763,3237.8,3236.8,3.08939]
[1736468463241,0.05255535,3237.7,3236.8,0.254]
[1736468464218,0.05255535,3237.7,3237.2,3.08908]
[1736468464426,0.05255535,3237.7,3237.2,3.11996697]
[1736468464623,0.05255535,3237.7,3237.2,3.08908]
[1736468467349,0.05255535,3237.7,3236.9,0.03088697]
[1736468467350,0.05255535,3237.7,3237.6,3.0887]
[1736468467727,0.7811,3238.5,3237.7,3.08852]
[1736468468055,0.05273705,3238.4,3237.8,0.28488191]